[Event "RUS-chT Rapid Men 2018"]
[Site "Sochi"]
[Date "2018.10.08"]
[Round "4"]
[White "Bocharov, Dmitry"]
[Black "Sergeyev, Alexander"]
[Result "1-0"]
[ECO "A11"]
[WhiteElo "2557"]
[BlackElo "2397"]
[Annotator "ChessBase"]
[PlyCount "90"]
[EventDate "2018.10.05"]
[EventType "swiss"]
[EventCountry "RUS"]
[SourceTitle "playchess.com"]
[Source "ChessBase"]
[SourceQuality "1"]
[TimeControl "900+10"]

1. c4 {[%emt 0:00:00]} c6 {[%emt 0:00:00]} 2. Nf3 {[%emt 0:00:10]} d5 {[%emt 0:00:00]} 3. e3 {[%emt 0:00:06]} Nf6 {[%emt 0:00:00]} 4. Nc3 {[%emt 0:00:02]} g6 {[%emt 0:00:03]} 5. d4 {[%emt 0:00:04]} Bg7 {[%emt 0:00:02]} 6. Bd3 {[%emt 0:00:05]} O-O {[%emt 0:00:03]} 7. h3 {[%emt 0:00:02]} Nbd7 {[%emt 0:02:52]} 8. O-O {[%emt 0:00:03]} a6 {[%emt 0:01:47]} 9. b3 {[%emt 0:04:35]} b5 {[%emt 0:00:43]} 10. Qe2 {[%emt 0:00:39]} dxc4 {[%emt 0:04:06]} 11. bxc4 {[%emt 0:00:04]} b4 {[%emt 0:00:03]} 12. Ne4 {[%emt 0:02:27]} c5 {[%emt 0:00:12]} 13. Bb2 {[%emt 0:00:03]} Bb7 {[%emt 0:01:40]} 14. d5 {[%emt 0:01:31]} a5 {[%emt 0:00:51]} 15. Ng3 {[%emt 0:00:44]} Re8 {[%emt 0:01:07]} 16. e4 {[%emt 0:01:15]} e6 {[%emt 0:00:55]} 17. Qc2 {[%emt 0:00:07]} e5 {[%emt 0:00:12]} 18. a4 {[%emt 0:01:18]} Re7 {[%emt 0:00:08]} 19. Nd2 {[%emt 0:00:12]} Ne8 {[%emt 0:00:04]} 20. Nb3 {[%emt 0:00:20]} Nd6 {[%emt 0:00:05]} 21. Ne2 {[%emt 0:00:10]} Ba6 {[%emt 0:00:15]} 22. g3 {[%emt 0:00:32]} f5 {[%emt 0:00:25]} 23. f3 {[%emt 0:00:05]} Rf7 {[%emt 0:00:39]} 24. Kg2 {[%emt 0:00:04]} Qc7 {[%emt 0:00:44]} 25. Nd2 {[%emt 0:00:17]} Raf8 {[%emt 0:00:12]} 26. exf5 {[%emt 0:00:54]} gxf5 {[%emt 0:00:14]} 27. g4 {[%emt 0:00:03]} Nb6 {[%emt 0:00:41]} 28. Ng3 {[%emt 0:00:16]} e4 {[%emt 0:00:50]} 29. fxe4 {[%emt 0:00:34]} Bxb2 {[%emt 0:00:21]} 30. Qxb2 {[%emt 0:00:13]} fxe4 {[%emt 0:00:03]} 31. Rxf7 {[%emt 0:01:41]} Rxf7 {[%emt 0:00:05]} 32. Ngxe4 {[%emt 0:00:12]} Nbxc4 {[%emt 0:00:33]} 33. Nxc4 {[%emt 0:00:11]} Nxc4 {[%emt 0:00:03]} 34. Qe2 {[%emt 0:00:25]} Qe5 {[%emt 0:00:23]} 35. Rd1 {[%emt 0:00:44]} Nd6 {[%emt 0:00:11]} 36. Nxd6 {[%emt 0:00:33]} Qxe2+ {[%emt 0:00:01]} 37. Bxe2 Bxe2 38. Re1 {[%emt 0:00:04]} Rd7 {[%emt 0:00:09]} 39. Ne4 {[%emt 0:00:02]} Kg7 {[%emt 0:00:20]} 40. Rxe2 {[%emt 0:00:09]} Rxd5 {[%emt 0:00:01]} 41. Rd2 {[%emt 0:00:05]} Rxd2+ {[%emt 0:00:10]} 42. Nxd2 {[%emt 0:00:01]} Kf6 {[%emt 0:00:08]} 43. Kf3 {[%emt 0:00:01]} Ke5 {[%emt 0:00:02]} 44. Ke3 {[%emt 0:00:01]} Kd5 {[%emt 0:00:01]} 45. Kd3 {[%emt 0:00:03]} b3 {[%emt 0:00:01] Ke4+} 1-0

[Event "RUS-chT Rapid Men 2018"]
[Site "Sochi"]
[Date "2018.10.08"]
[Round "4"]
[White "Sychev, Klementy"]
[Black "Triapishko, Alexandr"]
[Result "1/2-1/2"]
[ECO "B18"]
[WhiteElo "2534"]
[BlackElo "2508"]
[Annotator "ChessBase"]
[PlyCount "71"]
[EventDate "2018.10.05"]
[EventType "swiss"]
[EventCountry "RUS"]
[SourceTitle "playchess.com"]
[Source "ChessBase"]
[SourceQuality "1"]
[TimeControl "900+10"]

1. e4 {[%emt 0:00:00]} c6 {[%emt 0:00:11]} 2. d4 {[%emt 0:00:00]} d5 {[%emt 0:00:01]} 3. Nd2 {[%emt 0:00:00]} dxe4 {[%emt 0:00:03]} 4. Nxe4 {[%emt 0:00:00]} Bf5 {[%emt 0:00:02]} 5. Ng3 {[%emt 0:00:00]} Bg6 {[%emt 0:00:02]} 6. c3 {[%emt 0:00:00]} Nf6 {[%emt 0:02:07]} 7. h4 {[%emt 0:01:29]} h6 {[%emt 0:00:10]} 8. Nh3 {[%emt 0:00:12]} Nbd7 {[%emt 0:00:43]} 9. Bc4 {[%emt 0:00:23]} Nb6 {[%emt 0:01:02]} 10. Bb3 {[%emt 0:00:15]} e6 {[%emt 0:01:17]} 11. Nf4 {[%emt 0:00:12]} Bh7 {[%emt 0:00:05]} 12. Nfh5 {[%emt 0:00:10]} Nbd5 {[%emt 0:01:47]} 13. Qf3 {[%emt 0:01:13]} a5 {[%emt 0:01:47]} 14. a4 {[%emt 0:00:20]} Qc7 {[%emt 0:01:39]} 15. O-O {[%emt 0:00:12]} O-O-O {[%emt 0:00:35]} 16. Bd2 {[%emt 0:00:44]} Rg8 {[%emt 0:02:40]} 17. Nxf6 {[%emt 0:01:26]} Nxf6 {[%emt 0:00:49]} 18. Bf4 {[%emt 0:00:12]} Bd6 {[%emt 0:00:06]} 19. Bxd6 {[%emt 0:00:01]} Rxd6 {[%emt 0:00:09]} 20. Rfe1 {[%emt 0:00:41]} Rgd8 {[%emt 0:00:25]} 21. Re5 {[%emt 0:01:48]} Nd7 {[%emt 0:00:22]} 22. Re2 {[%emt 0:00:04]} Nf6 {[%emt 0:00:08]} 23. Rae1 {[%emt 0:00:10]} Kb8 {[%emt 0:00:22]} 24. Nf1 {[%emt 0:00:47]} Bg6 {[%emt 0:00:44]} 25. Qg3 {[%emt 0:00:29]} Nh5 {[%emt 0:00:30]} 26. Qh2 {[%emt 0:00:28]} Nf6 {[%emt 0:00:19]} 27. Nd2 {[%emt 0:00:33]} Bd3 {[%emt 0:00:12]} 28. Nc4 {[%emt 0:01:09]} Bxe2 {[%emt 0:00:11]} 29. Nxd6 {[%emt 0:00:15]} Qxd6 {[%emt 0:00:18]} 30. Qxd6+ {[%emt 0:00:55]} Rxd6 {[%emt 0:00:01]} 31. Rxe2 {[%emt 0:00:01]} Kc7 {[%emt 0:00:03]} 32. f3 {[%emt 0:00:44]} Nd5 {[%emt 0:00:25]} 33. g3 {[%emt 0:00:28]} b6 {[%emt 0:00:27]} 34. Kf2 {[%emt 0:00:17]} Kd7 {[%emt 0:00:29]} 35. Bc4 {[%emt 0:00:23]} Nc7 {[%emt 0:00:07]} 36. g4 {[%emt 0:01:03]} 1/2-1/2

[Event "RUS-chT Rapid Men 2018"]
[Site "Sochi"]
[Date "2018.10.08"]
[Round "4"]
[White "Shcherbakov, Ruslan"]
[Black "Lugovskoy, Maxim"]
[Result "1/2-1/2"]
[ECO "D30"]
[WhiteElo "2516"]
[BlackElo "2428"]
[Annotator "ChessBase"]
[PlyCount "78"]
[EventDate "2018.10.05"]
[EventType "swiss"]
[EventCountry "RUS"]
[SourceTitle "playchess.com"]
[Source "ChessBase"]
[SourceQuality "1"]
[TimeControl "900+10"]

1. d4 {[%emt 0:00:00]} d5 {[%emt 0:00:00]} 2. c4 {[%emt 0:00:00]} e6 {[%emt 0:00:00]} 3. Nf3 {[%emt 0:00:05]} a6 {[%emt 0:00:00]} 4. Bg5 {[%emt 0:02:11]} Be7 {[%emt 0:00:00]} 5. Bxe7 {[%emt 0:00:05]} Qxe7 {[%emt 0:00:00]} 6. cxd5 {[%emt 0:01:42]} exd5 {[%emt 0:00:00]} 7. Nc3 {[%emt 0:00:01]} Nf6 {[%emt 0:00:02]} 8. e3 {[%emt 0:00:23]} c6 {[%emt 0:00:01]} 9. Bd3 {[%emt 0:00:20]} Nbd7 {[%emt 0:00:02]} 10. O-O {[%emt 0:00:07]} O-O {[%emt 0:00:02]} 11. Qc2 {[%emt 0:00:21]} Re8 {[%emt 0:00:02]} 12. h3 {[%emt 0:00:43]} Nf8 {[%emt 0:00:03]} 13. Rae1 {[%emt 0:00:43]} Ng6 {[%emt 0:00:16]} 14. e4 {[%emt 0:01:35]} dxe4 {[%emt 0:00:54]} 15. Nxe4 {[%emt 0:00:02]} Nxe4 {[%emt 0:00:42]} 16. Bxe4 {[%emt 0:00:18]} Be6 {[%emt 0:00:07]} 17. Re3 {[%emt 0:00:58]} Qf6 {[%emt 0:00:28]} 18. Rfe1 {[%emt 0:00:18]} Red8 {[%emt 0:00:01]} 19. h4 {[%emt 0:01:04]} Nf8 {[%emt 0:00:36]} 20. Ng5 {[%emt 0:02:04]} h6 {[%emt 0:00:26]} 21. Nf3 {[%emt 0:00:32]} Bg4 {[%emt 0:02:35]} 22. Ne5 {[%emt 0:00:04]} Be6 {[%emt 0:01:26]} 23. Nf3 {[%emt 0:00:13]} Bg4 {[%emt 0:00:04]} 24. Ne5 {[%emt 0:00:02]} Be6 {[%emt 0:00:48]} 25. Nf3 {[%emt 0:00:03]} Bd5 {[%emt 0:00:22]} 26. Bxd5 {[%emt 0:00:13]} Rxd5 {[%emt 0:00:03]} 27. Re5 {[%emt 0:00:39]} Rad8 {[%emt 0:01:17]} 28. Rxd5 {[%emt 0:00:29]} Rxd5 {[%emt 0:00:02]} 29. Re5 {[%emt 0:00:22]} Rd8 {[%emt 0:00:36]} 30. h5 {[%emt 0:00:08]} Ne6 {[%emt 0:00:11]} 31. Qe4 {[%emt 0:00:02]} Rd7 {[%emt 0:01:49]} 32. g3 {[%emt 0:00:29]} Rd8 {[%emt 0:01:36]} 33. Kg2 {[%emt 0:00:03]} Rd7 {[%emt 0:00:25]} 34. a3 {[%emt 0:00:03]} Rd8 {[%emt 0:00:10]} 35. b4 {[%emt 0:00:29]} Rd7 {[%emt 0:00:01]} 36. d5 {[%emt 0:00:39]} cxd5 {[%emt 0:00:10]} 37. Rxd5 {[%emt 0:00:01]} Rxd5 {[%emt 0:00:01]} 38. Qxd5 {[%emt 0:00:01]} Qe7 {[%emt 0:00:26]} 39. Qe4 {[%emt 0:00:24]} Qc7 {[%emt 0:00:34]} 1/2-1/2

[Event "RUS-chT Rapid Men 2018"]
[Site "Sochi"]
[Date "2018.10.08"]
[Round "4"]
[White "Potapov, Pavel"]
[Black "Bocharov, Ivan"]
[Result "0-1"]
[ECO "C77"]
[WhiteElo "2515"]
[BlackElo "2563"]
[Annotator "ChessBase"]
[PlyCount "78"]
[EventDate "2018.10.05"]
[EventType "swiss"]
[EventCountry "RUS"]
[SourceTitle "playchess.com"]
[Source "ChessBase"]
[SourceQuality "1"]
[TimeControl "900+10"]

1. e4 {[%emt 0:00:00]} e5 {[%emt 0:00:00]} 2. Nf3 {[%emt 0:00:00]} Nc6 {[%emt 0:00:00]} 3. Bb5 {[%emt 0:00:00]} a6 {[%emt 0:00:00]} 4. Ba4 {[%emt 0:00:03]} Nf6 {[%emt 0:00:00]} 5. d3 {[%emt 0:00:06]} d6 {[%emt 0:00:00]} 6. c3 {[%emt 0:00:13]} g6 {[%emt 0:00:04]} 7. O-O {[%emt 0:00:05]} Bg7 {[%emt 0:00:02]} 8. Re1 {[%emt 0:00:04]} O-O {[%emt 0:00:02]} 9. Nbd2 {[%emt 0:00:11]} b5 {[%emt 0:01:15]} 10. Bb3 {[%emt 0:00:08]} Nb8 {[%emt 0:00:12]} 11. Nf1 {[%emt 0:00:08]} Bb7 {[%emt 0:00:02]} 12. Ng3 {[%emt 0:00:21]} Nbd7 {[%emt 0:00:16]} 13. d4 {[%emt 0:00:09]} Re8 {[%emt 0:00:06]} 14. Bc2 {[%emt 0:02:17]} d5 {[%emt 0:01:23]} 15. exd5 {[%emt 0:01:16]} exd4 {[%emt 0:00:52]} 16. Rxe8+ {[%emt 0:01:03]} Qxe8 {[%emt 0:00:04]} 17. Nxd4 {[%emt 0:00:26]} Nxd5 {[%emt 0:00:07]} 18. Bg5 {[%emt 0:01:00]} Ne5 {[%emt 0:02:11]} 19. Qd2 {[%emt 0:02:01]} Nc4 {[%emt 0:00:26]} 20. Qc1 {[%emt 0:00:05]} b4 {[%emt 0:03:29]} 21. Bh6 {[%emt 0:01:40]} bxc3 {[%emt 0:01:58]} 22. bxc3 {[%emt 0:00:03]} Bxh6 {[%emt 0:00:19]} 23. Qxh6 {[%emt 0:00:03]} Nxc3 {[%emt 0:00:15]} 24. Nf3 {[%emt 0:04:41]} Bxf3 {[%emt 0:00:45]} 25. gxf3 {[%emt 0:00:02]} Qe5 {[%emt 0:00:01]} 26. Kg2 {[%emt 0:00:29]} Nd5 {[%emt 0:01:52]} 27. Rc1 {[%emt 0:00:39]} Qf4 {[%emt 0:00:45]} 28. Qxf4 {[%emt 0:00:10]} Nxf4+ {[%emt 0:00:00]} 29. Kg1 {[%emt 0:00:03]} Ne5 {[%emt 0:00:38]} 30. Be4 {[%emt 0:00:10]} Rb8 {[%emt 0:00:00]} 31. Rxc7 {[%emt 0:00:38]} Rb2 {[%emt 0:00:18]} 32. Rc5 {[%emt 0:01:13]} Nh3+ {[%emt 0:00:18]} 33. Kg2 {[%emt 0:00:16]} Nxf2 {[%emt 0:00:02]} 34. Kf1 {[%emt 0:00:01]} Nxe4 {[%emt 0:00:20]} 35. fxe4 {[%emt 0:00:15]} Nf3 {[%emt 0:00:18]} 36. Ra5 {[%emt 0:00:11]} Nxh2+ {[%emt 0:00:06]} 37. Ke1 {[%emt 0:00:01]} Nf3+ {[%emt 0:00:02]} 38. Kd1 {[%emt 0:00:02]} Rd2+ {[%emt 0:00:09]} 39. Kc1 {[%emt 0:00:02]} Rg2 {[%emt 0:00:01]} 0-1

[Event "RUS-chT Rapid Men 2018"]
[Site "Sochi"]
[Date "2018.10.08"]
[Round "4"]
[White "Khanin, Semen"]
[Black "Savitskiy, Sergey"]
[Result "1-0"]
[ECO "B67"]
[WhiteElo "2510"]
[BlackElo "2413"]
[Annotator "ChessBase"]
[PlyCount "59"]
[EventDate "2018.10.05"]
[EventType "swiss"]
[EventCountry "RUS"]
[SourceTitle "playchess.com"]
[Source "ChessBase"]
[SourceQuality "1"]
[TimeControl "900+10"]

1. e4 {[%emt 0:00:00]} c5 {[%emt 0:00:00]} 2. Nf3 {[%emt 0:00:00]} d6 {[%emt 0:00:00]} 3. d4 {[%emt 0:00:06]} cxd4 {[%emt 0:00:00]} 4. Nxd4 {[%emt 0:00:02]} Nf6 {[%emt 0:00:00]} 5. Nc3 {[%emt 0:00:01]} Nc6 {[%emt 0:00:02]} 6. Bg5 {[%emt 0:00:02]} e6 {[%emt 0:00:02]} 7. Qd2 {[%emt 0:00:02]} a6 {[%emt 0:00:03]} 8. O-O-O {[%emt 0:00:03]} Bd7 {[%emt 0:00:03]} 9. f3 {[%emt 0:00:03]} h5 {[%emt 0:00:18]} 10. h4 {[%emt 0:00:23]} Qc7 {[%emt 0:00:15]} 11. Nxc6 {[%emt 0:00:48]} bxc6 {[%emt 0:02:26]} 12. Bf4 {[%emt 0:00:28]} e5 {[%emt 0:00:30]} 13. Bg5 {[%emt 0:00:01]} Be6 {[%emt 0:00:14]} 14. f4 {[%emt 0:00:26]} exf4 {[%emt 0:09:11]} 15. Bxf4 {[%emt 0:00:07]} Rd8 {[%emt 0:00:02]} 16. Bxa6 {[%emt 0:01:45]} Be7 {[%emt 0:00:06]} 17. Be2 {[%emt 0:02:07]} Ng4 {[%emt 0:00:48]} 18. Rhf1 {[%emt 0:01:01]} O-O {[%emt 0:00:43]} 19. Bg5 {[%emt 0:00:22]} f6 {[%emt 0:00:51]} 20. Bf4 {[%emt 0:00:04]} Qa5 {[%emt 0:00:04]} 21. Kb1 {[%emt 0:00:34]} Ra8 {[%emt 0:00:36]} 22. b3 {[%emt 0:02:01]} Rfb8 {[%emt 0:00:26]} 23. Bxd6 {[%emt 0:01:50]} Bxd6 {[%emt 0:01:23]} 24. Qxd6 {[%emt 0:00:07]} Bxb3 {[%emt 0:00:01]} 25. cxb3 {[%emt 0:00:15]} Rxb3+ {[%emt 0:00:02]} 26. axb3 {[%emt 0:00:13]} Qxc3 {[%emt 0:00:02]} 27. Qe6+ {[%emt 0:02:13]} Kh8 {[%emt 0:00:28]} 28. Ba6 {[%emt 0:00:43]} Rxa6 {[%emt 0:00:39]} 29. Rd8+ {[%emt 0:00:02]} Kh7 {[%emt 0:00:15]} 30. Qf5+ {[%emt 0:00:02]} 1-0

[Event "RUS-chT Rapid Men 2018"]
[Site "Sochi"]
[Date "2018.10.08"]
[Round "4"]
[White "Chekhov, Sergei"]
[Black "Tekeyev, Zaur"]
[Result "0-1"]
[ECO "B30"]
[WhiteElo "2463"]
[BlackElo "2392"]
[Annotator "ChessBase"]
[PlyCount "70"]
[EventDate "2018.10.05"]
[EventType "swiss"]
[EventCountry "RUS"]
[SourceTitle "playchess.com"]
[Source "ChessBase"]
[SourceQuality "1"]
[TimeControl "900+10"]

1. e4 {[%emt 0:00:00]} c5 {[%emt 0:00:00]} 2. Nf3 {[%emt 0:00:00]} Nc6 {[%emt 0:00:00]} 3. c3 {[%emt 0:00:01]} e6 {[%emt 0:00:03]} 4. d4 {[%emt 0:00:03]} d5 {[%emt 0:00:01]} 5. exd5 {[%emt 0:00:01]} exd5 {[%emt 0:00:02]} 6. Bb5 {[%emt 0:00:03]} Bd6 {[%emt 0:00:02]} 7. dxc5 {[%emt 0:00:03]} Bxc5 {[%emt 0:00:01]} 8. O-O {[%emt 0:00:05]} Nge7 {[%emt 0:00:03]} 9. Nbd2 {[%emt 0:00:02]} O-O {[%emt 0:00:08]} 10. Qa4 {[%emt 0:00:34]} Bf5 {[%emt 0:00:51]} 11. Re1 {[%emt 0:00:37]} Qb6 {[%emt 0:00:49]} 12. Re2 {[%emt 0:00:24]} a6 {[%emt 0:03:03]} 13. Bxc6 {[%emt 0:00:03]} bxc6 {[%emt 0:00:40]} 14. Nb3 {[%emt 0:03:57]} Bd3 {[%emt 0:02:09]} 15. Be3 {[%emt 0:02:08]} Bxe3 {[%emt 0:02:16]} 16. Rxe3 {[%emt 0:00:03]} Be4 {[%emt 0:00:16]} 17. Ng5 {[%emt 0:02:42]} Nf5 {[%emt 0:04:15]} 18. Rh3 {[%emt 0:01:12]} Qb5 {[%emt 0:00:01]} 19. Qa3 {[%emt 0:01:07]} Rfe8 {[%emt 0:00:49]} 20. Nd2 {[%emt 0:01:34]} h6 {[%emt 0:00:59]} 21. c4 {[%emt 0:01:08]} Qb6 {[%emt 0:00:31]} 22. c5 {[%emt 0:00:58]} Qb5 {[%emt 0:00:15]} 23. Ngxe4 {[%emt 0:00:01]} dxe4 {[%emt 0:00:03]} 24. Re1 {[%emt 0:00:01]} Nd4 {[%emt 0:00:55]} 25. Rf1 {[%emt 0:01:53]} Rad8 {[%emt 0:00:21]} 26. Qe3 {[%emt 0:00:10]} f5 {[%emt 0:00:31]} 27. Rh4 {[%emt 0:00:26]} f4 {[%emt 0:00:10]} 28. Qe1 {[%emt 0:00:05]} e3 {[%emt 0:00:13]} 29. fxe3 {[%emt 0:00:00]} fxe3 {[%emt 0:00:04]} 30. Ne4 {[%emt 0:00:05]} Qd3 {[%emt 0:00:17]} 31. Nf6+ {[%emt 0:00:23]} gxf6 {[%emt 0:00:08]} 32. Qg3+ {[%emt 0:00:01]} Kf7 {[%emt 0:00:12]} 33. Rxf6+ {[%emt 0:00:02]} Kxf6 {[%emt 0:00:11]} 34. Rxh6+ {[%emt 0:00:01]} Kf7 {[%emt 0:00:04]} 35. Qg4 {[%emt 0:00:44]} Qb1+ {[%emt 0:00:04]} 0-1

[Event "RUS-chT Rapid Men 2018"]
[Site "Sochi"]
[Date "2018.10.08"]
[Round "4"]
[White "Belyakov, Bogdan"]
[Black "Maletin, Pavel"]
[Result "0-1"]
[ECO "C47"]
[WhiteElo "2458"]
[BlackElo "2586"]
[Annotator "ChessBase"]
[PlyCount "96"]
[EventDate "2018.10.05"]
[EventType "swiss"]
[EventCountry "RUS"]
[SourceTitle "playchess.com"]
[Source "ChessBase"]
[SourceQuality "1"]
[TimeControl "900+10"]

1. e4 {[%emt 0:00:00]} e5 {[%emt 0:00:00]} 2. Nf3 {[%emt 0:00:00]} Nc6 {[%emt 0:00:00]} 3. Nc3 {[%emt 0:00:00]} Nf6 {[%emt 0:00:00]} 4. a3 {[%emt 0:00:00]} d5 {[%emt 0:00:19]} 5. Bb5 {[%emt 0:00:00]} Nxe4 {[%emt 0:00:31]} 6. Nxe5 {[%emt 0:01:51]} Qf6 {[%emt 0:01:36]} 7. Nf3 {[%emt 0:00:43]} Qg6 {[%emt 0:04:33]} 8. Qe2 {[%emt 0:03:07]} Be6 {[%emt 0:02:41]} 9. Nh4 {[%emt 0:04:45]} Nxc3 {[%emt 0:00:42]} 10. dxc3 {[%emt 0:00:06]} Qe4 {[%emt 0:00:03]} 11. Nf3 {[%emt 0:00:46]} Qxe2+ {[%emt 0:00:05]} 12. Kxe2 {[%emt 0:00:02]} O-O-O {[%emt 0:00:16]} 13. Bxc6 {[%emt 0:00:06]} bxc6 {[%emt 0:00:02]} 14. Ng5 {[%emt 0:00:06]} Bg4+ {[%emt 0:00:14]} 15. f3 {[%emt 0:00:32]} Re8+ {[%emt 0:00:02]} 16. Kd1 {[%emt 0:00:08]} Bh5 {[%emt 0:00:09]} 17. Nh3 {[%emt 0:00:05]} f6 {[%emt 0:00:09]} 18. Nf4 {[%emt 0:00:13]} Bf7 {[%emt 0:00:01]} 19. h4 {[%emt 0:00:10]} c5 {[%emt 0:01:34]} 20. b4 {[%emt 0:02:14]} Bd6 {[%emt 0:00:05]} 21. bxc5 {[%emt 0:00:02]} Bxc5 {[%emt 0:00:01]} 22. Nd3 {[%emt 0:00:01]} Bb6 {[%emt 0:00:45]} 23. a4 {[%emt 0:00:03]} a5 {[%emt 0:00:07]} 24. Ba3 {[%emt 0:00:23]} d4 {[%emt 0:00:07]} 25. cxd4 {[%emt 0:00:36]} Bxd4 {[%emt 0:00:01]} 26. Rb1 {[%emt 0:00:01]} Bc4 {[%emt 0:00:11]} 27. Kd2 {[%emt 0:00:21]} Re6 {[%emt 0:00:16]} 28. Bc5 {[%emt 0:00:45]} Bxc5 {[%emt 0:00:34]} 29. Nxc5 {[%emt 0:00:02]} Rc6 {[%emt 0:00:00]} 30. Nd3 {[%emt 0:00:50]} Rd8 {[%emt 0:00:47]} 31. Rhe1 {[%emt 0:00:04]} Rcd6 {[%emt 0:00:47]} 32. Re3 {[%emt 0:00:41]} Bxd3 {[%emt 0:00:10]} 33. cxd3 {[%emt 0:00:50]} Rd4 {[%emt 0:00:02]} 34. g3 {[%emt 0:00:04]} Rxa4 {[%emt 0:00:10]} 35. Re7 {[%emt 0:00:01]} Ra3 {[%emt 0:00:16]} 36. Rxg7 {[%emt 0:00:07]} Rdxd3+ {[%emt 0:00:02]} 37. Ke2 {[%emt 0:00:05]} Re3+ {[%emt 0:00:25]} 38. Kf2 {[%emt 0:00:01]} Rxf3+ {[%emt 0:00:02]} 39. Kg2 {[%emt 0:00:01]} h5 {[%emt 0:00:08]} 40. Rb5 {[%emt 0:00:01]} Rfc3 {[%emt 0:01:04]} 41. Rxh5 {[%emt 0:00:03]} a4 {[%emt 0:00:34]} 42. Ra5 {[%emt 0:00:02]} Kb7 {[%emt 0:00:04]} 43. h5 {[%emt 0:00:02]} Rc2+ {[%emt 0:00:06]} 44. Kh3 {[%emt 0:00:02]} Ra1 {[%emt 0:00:02]} 45. Rb5+ {[%emt 0:00:16]} Kc6 {[%emt 0:00:04]} 46. Rf5 {[%emt 0:00:02]} Rh1+ {[%emt 0:00:11]} 47. Kg4 {[%emt 0:00:01]} Rc4+ {[%emt 0:00:01]} 48. Kf3 {[%emt 0:00:03]} Rf1+ {[%emt 0:00:02]} 0-1

[Event "RUS-chT Rapid Men 2018"]
[Site "Sochi"]
[Date "2018.10.08"]
[Round "4"]
[White "Usmanov, Vasily"]
[Black "Antipov, Mikhail Al."]
[Result "1-0"]
[ECO "D10"]
[WhiteElo "2453"]
[BlackElo "2593"]
[Annotator "ChessBase"]
[PlyCount "117"]
[EventDate "2018.10.05"]
[EventType "swiss"]
[EventCountry "RUS"]
[SourceTitle "playchess.com"]
[Source "ChessBase"]
[SourceQuality "1"]
[TimeControl "900+10"]

1. d4 {[%emt 0:00:00]} Nf6 {[%emt 0:00:00]} 2. c4 {[%emt 0:00:00]} c6 {[%emt 0:00:00]} 3. Nf3 {[%emt 0:00:02]} d5 {[%emt 0:00:00]} 4. cxd5 {[%emt 0:00:01]} cxd5 {[%emt 0:00:00]} 5. Nc3 {[%emt 0:00:01]} Nc6 {[%emt 0:00:00]} 6. Bf4 {[%emt 0:00:01]} a6 {[%emt 0:00:01]} 7. e3 {[%emt 0:00:06]} Bg4 {[%emt 0:00:01]} 8. h3 {[%emt 0:00:01]} Bxf3 {[%emt 0:00:03]} 9. Qxf3 {[%emt 0:00:01]} e6 {[%emt 0:00:03]} 10. Bd3 {[%emt 0:00:18]} Be7 {[%emt 0:00:12]} 11. O-O {[%emt 0:00:02]} O-O {[%emt 0:00:03]} 12. Rfc1 {[%emt 0:00:11]} Rc8 {[%emt 0:00:29]} 13. Qd1 {[%emt 0:00:55]} Nd7 {[%emt 0:00:32]} 14. a3 {[%emt 0:02:03]} Na5 {[%emt 0:03:26]} 15. e4 {[%emt 0:01:45]} Nf6 {[%emt 0:00:18]} 16. e5 {[%emt 0:02:54]} Nd7 {[%emt 0:00:01]} 17. b3 {[%emt 0:02:38]} Bg5 {[%emt 0:01:58]} 18. Bxg5 {[%emt 0:02:17]} Qxg5 {[%emt 0:00:01]} 19. Ne2 {[%emt 0:00:18]} f5 {[%emt 0:02:39]} 20. f4 {[%emt 0:00:04]} Qe7 {[%emt 0:01:10]} 21. b4 {[%emt 0:01:15]} Nc6 {[%emt 0:00:02]} 22. b5 {[%emt 0:00:07]} axb5 {[%emt 0:00:31]} 23. Bxb5 {[%emt 0:00:03]} Ndb8 {[%emt 0:00:52]} 24. Qa4 {[%emt 0:00:31]} Rc7 {[%emt 0:00:05]} 25. Rc3 {[%emt 0:00:05]} Rfc8 {[%emt 0:00:37]} 26. Rac1 {[%emt 0:00:01]} h6 {[%emt 0:00:43]} 27. Kh2 {[%emt 0:00:11]} Qh4 {[%emt 0:00:30]} 28. g3 {[%emt 0:00:48]} Qh5 {[%emt 0:00:05]} 29. Ng1 {[%emt 0:00:09]} g5 {[%emt 0:00:21]} 30. Be2 {[%emt 0:00:32]} Qg6 {[%emt 0:00:31]} 31. Nf3 {[%emt 0:00:07]} Kh8 {[%emt 0:00:55]} 32. Qd1 {[%emt 0:00:39]} Rg8 {[%emt 0:00:53]} 33. Qd2 {[%emt 0:00:02]} Rcg7 {[%emt 0:00:57]} 34. Rg1 {[%emt 0:00:05]} Nd7 {[%emt 0:00:01]} 35. g4 {[%emt 0:00:18]} gxf4 {[%emt 0:01:00]} 36. Qxf4 {[%emt 0:00:06]} fxg4 {[%emt 0:01:41]} 37. Rxg4 {[%emt 0:00:01]} Qf7 {[%emt 0:00:01]} 38. Qxh6+ {[%emt 0:00:19]} Rh7 {[%emt 0:00:01]} 39. Qf4 {[%emt 0:01:11]} Qxf4+ {[%emt 0:00:31]} 40. Rxf4 {[%emt 0:00:02]} Nf8 {[%emt 0:00:11]} 41. Bd3 {[%emt 0:00:21]} Rh6 {[%emt 0:00:09]} 42. Rb3 {[%emt 0:00:25]} Nd8 {[%emt 0:00:11]} 43. Rb2 {[%emt 0:00:14]} Nh7 {[%emt 0:00:08]} 44. h4 {[%emt 0:00:13]} Rf8 {[%emt 0:00:14]} 45. Rxf8+ Nxf8 {[%emt 0:00:01]} 46. Kg3 {[%emt 0:00:12]} Kg7 {[%emt 0:00:16]} 47. Ng5 {[%emt 0:00:33]} Ng6 {[%emt 0:00:06]} 48. Bxg6 {[%emt 0:00:07]} Kxg6 {[%emt 0:00:04]} 49. Kg4 {[%emt 0:00:03]} Kg7 {[%emt 0:00:17]} 50. Rb6 {[%emt 0:00:08]} Rg6 {[%emt 0:00:16]} 51. Rd6 {[%emt 0:00:17]} Nc6 {[%emt 0:00:01]} 52. h5 {[%emt 0:00:13]} Rh6 {[%emt 0:00:00]} 53. Nxe6+ {[%emt 0:00:08]} Kg8 {[%emt 0:00:02]} 54. Kg5 {[%emt 0:00:11]} Rh7 {[%emt 0:00:02]} 55. Rxd5 {[%emt 0:00:05]} Re7 {[%emt 0:00:01]} 56. Nf4 {[%emt 0:00:05]} Rg7+ {[%emt 0:00:05]} 57. Ng6 {[%emt 0:00:02]} Rf7 {[%emt 0:00:03]} 58. e6 {[%emt 0:00:09]} Rf1 {[%emt 0:00:11]} 59. Rd7 {[%emt 0:00:08]} 1-0